[Event "45th FIDE Womens Olympiad 2024"]
[Site "Budapest"]
[Date "2024.09.14"]
[Round "4.180"]
[White "Putar, Lara"]
[Black "Elizabeth  Tanyous"]
[Result "1-0"]
[ECO "D11"]
[WhiteElo "1911"]
[BlackElo "1530"]
[PlyCount "53"]
[EventDate "2024.09.05"]
[EventType "team-tourn"]
[EventCountry "HUN"]
[WhiteTeam "Ireland"]
[BlackTeam "Sudan"]
[WhiteTeamCountry "IRL"]
[BlackTeamCountry "SUD"]
[TimeControl "40/5400+30:1800+30"]

1. d4 d5 2. c4 c6 3. Nf3 Bg4 4. Ne5 Nf6 5. Nxg4 Nxg4 6. e4 Nf6 7. e5 Nfd7 8. Nc3 e6 9. b3 Be7 10. Qg4 Bf8 11. Bg5 Qc7 12. Rc1 h6 13. Be3 Na6 14. cxd5 cxd5 15. Bxa6 bxa6 16. O-O Qd8 17. Na4 g6 18. Rc6 Qe7 19. Rfc1 Rd8 20. Rxa6 Bg7 21. Rxa7 h5 22. Qe2 f5 23. Qd2 Qf8 24. Rcc7 h4 25. Bg5 Bh6 26. Bxh6 Rxh6 27. Nc5 1-0

[Event "45th FIDE Womens Olympiad 2024"]
[Site "Budapest"]
[Date "2024.09.14"]
[Round "4.181"]
[White "Caxita, Esperanca"]
[Black "Haile, Lidet Abate"]
[Result "1-0"]
[ECO "C50"]
[WhiteElo "1932"]
[BlackElo "1834"]
[PlyCount "76"]
[EventDate "2024.09.05"]
[EventType "team-tourn"]
[EventCountry "HUN"]
[WhiteTeam "Angola"]
[BlackTeam "Ethiopia"]
[WhiteTeamCountry "ANG"]
[BlackTeamCountry "ETH"]
[TimeControl "40/5400+30:1800+30"]

1. e4 e5 2. Nf3 Nc6 3. Bc4 Bc5 4. c3 d6 5. O-O h6 6. d4 exd4 7. cxd4 Bb6 8. h3 Nge7 9. Nc3 O-O 10. a3 a6 11. Be3 Kh7 12. Bd3 f5 13. exf5 Bxf5 14. Nh4 Bxd3 15. Qxd3+ Kh8 16. Ne2 Qe8 17. Ng3 Qf7 18. Rad1 Rae8 19. Qe4 Kg8 20. Qg4 Kh7 21. Rd3 Nd5 22. Bd2 Qe6 23. Ngf5 g6 24. Nxh6 Qxg4 25. Nxg4 Nxd4 26. Bh6 Rf7 27. Rfd1 Re4 28. Bg5 Kg7 29. Nf3 Ne2+ 30. Kf1 c6 31. Bh6+ Kg8 32. Ng5 Rxg4 33. Nxf7 Re4 34. Nxd6 Re6 35. Nc4 Ba7 36. g3 b5 37. Na5 Bb6 38. Nxc6 Rxc6 1-0

[Event "45th FIDE Womens Olympiad 2024"]
[Site "Budapest"]
[Date "2024.09.14"]
[Round "4.182"]
[White "Bantiwalu, Aster Melake"]
[Black "Junior, Ednasia"]
[Result "0-1"]
[ECO "B48"]
[WhiteElo "1704"]
[BlackElo "1888"]
[PlyCount "112"]
[EventDate "2024.09.05"]
[EventType "team-tourn"]
[EventCountry "HUN"]
[WhiteTeam "Ethiopia"]
[BlackTeam "Angola"]
[WhiteTeamCountry "ETH"]
[BlackTeamCountry "ANG"]
[TimeControl "40/5400+30:1800+30"]

1. e4 c5 2. Nc3 e6 3. Nf3 a6 4. Be2 Qc7 5. O-O Nc6 6. d4 cxd4 7. Nxd4 Nf6 8. Be3 Be7 9. f4 d6 10. a3 O-O 11. f5 Bd7 12. Bg4 Ne5 13. Bh3 Nc4 14. Bc1 e5 15. Nde2 Bc6 16. Qd3 b5 17. Ng3 Rac8 18. Qf3 Qb7 19. b3 Nb6 20. Bg5 Nbd7 21. Rac1 Rfe8 22. Rfe1 d5 23. Bxf6 Nxf6 24. exd5 Nxd5 25. f6 Nxf6 26. Qe2 Bd7 27. Bxd7 Qxd7 28. Nce4 Nxe4 29. Nxe4 Bxa3 30. Ra1 Bb4 31. Rec1 a5 32. c3 Bxc3 33. Rab1 Bd4+ 34. Kh1 Rxc1+ 35. Rxc1 Rc8 36. Rd1 h6 37. h3 Qd5 38. Qg4 Rc6 39. Rf1 Rg6 40. Qf3 Qe6 41. Ng3 Kh7 42. Ne4 a4 43. bxa4 bxa4 44. Nd2 Qc6 45. Qe2 a3 46. Nb3 Bb2 47. Rxf7 Qe6 48. Rf3 Qa6 49. Qc2 Qc6 50. Qe2 e4 51. Re3 Re6 52. Rg3 Qd5 53. Qc2 Qe5 54. Re3 a2 55. Rxe4 Qxe4 56. Qxb2 Qb1+ {0-} 0-1

[Event "45th FIDE Womens Olympiad 2024"]
[Site "Budapest"]
[Date "2024.09.14"]
[Round "4.183"]
[White "Pires, Luzia"]
[Black "Abera, Mekdes Demssie"]
[Result "1-0"]
[ECO "D05"]
[WhiteElo "1877"]
[BlackElo "1593"]
[PlyCount "71"]
[EventDate "2024.09.05"]
[EventType "team-tourn"]
[EventCountry "HUN"]
[WhiteTeam "Angola"]
[BlackTeam "Ethiopia"]
[WhiteTeamCountry "ANG"]
[BlackTeamCountry "ETH"]
[TimeControl "40/5400+30:1800+30"]

1. d4 d5 2. Nf3 e6 3. e3 c5 4. b3 Nf6 5. Bb2 Nc6 6. a3 Ne4 7. Bd3 Qa5+ 8. Nfd2 Nxd2 9. Nxd2 cxd4 10. exd4 Be7 11. O-O O-O 12. Qe2 Qb6 13. Nf3 Bf6 14. Rad1 g6 15. Qe3 Re8 16. Qf4 Kg7 17. Rfe1 Bd7 18. Ne5 Rad8 19. Re3 g5 20. Qg4 Rh8 21. Qh5 Be8 22. Ng4 h6 23. Nxf6 Kxf6 24. h4 Ke7 25. hxg5 Kd7 26. gxh6 f5 27. Qg5 Bf7 28. Bxf5 Ne7 29. Bh3 Rdg8 30. Qf6 Rh7 31. Rg3 Qc7 32. Re1 Rxg3 33. fxg3 Qxg3 34. Bxe6+ Bxe6 35. Qxe6+ Kd8 36. Bc1 1-0

[Event "45th FIDE Womens Olympiad 2024"]
[Site "Budapest"]
[Date "2024.09.14"]
[Round "4.184"]
[White "Teweldemedhn, Mekdes Teklay"]
[Black "Felicidade, Felicia"]
[Result "0-1"]
[ECO "C00"]
[WhiteElo "1648"]
[BlackElo "1742"]
[PlyCount "119"]
[EventDate "2024.09.05"]
[EventType "team-tourn"]
[EventCountry "HUN"]
[WhiteTeam "Ethiopia"]
[BlackTeam "Angola"]
[WhiteTeamCountry "ETH"]
[BlackTeamCountry "ANG"]
[TimeControl "40/5400+30:1800+30"]

1. e4 e6 2. Nf3 d5 3. exd5 exd5 4. h3 Bd6 5. Nc3 Nf6 6. d4 h6 7. Bd3 Be6 8. O-O O-O 9. Nb5 Be7 10. Bf4 Na6 11. a3 Re8 12. Ne5 c5 13. Qf3 c4 14. Be2 Ne4 15. Nc3 f5 16. Qe3 g5 17. Bh2 Bf6 18. Nxe4 dxe4 19. c3 Rc8 20. Bh5 Re7 21. f3 Bd5 22. fxe4 Bxe4 23. Bf3 Bd3 24. Be2 f4 25. Qd2 Bxe2 26. Qxe2 Bxe5 27. dxe5 Qc7 28. Qh5 Kg7 29. g3 Rxe5 30. gxf4 gxf4 31. Qf3 Qc5+ 32. Rf2 Rc6 33. Bxf4 Ree6 34. Kh2 Rf6 35. Rg1+ Kh7 36. Qe4+ Qf5 37. Qxf5+ Rxf5 38. Be3 Rxf2+ 39. Bxf2 Nc5 40. Bxc5 Rxc5 41. Rd1 Rc7 42. Rd4 Kg6 43. Kg3 a6 44. Rd5 Rc6 45. Kg4 b6 46. a4 Re6 47. a5 bxa5 48. Rxa5 Rb6 49. h4 Kg7 50. Kf4 Rxb2 51. Rxa6 Rc2 52. Ra7+ Kf8 53. Ra8+ Ke7 54. Ra3 Kf6 55. Ra6+ Kg7 56. Ra3 Kg6 57. Kg4 h5+ 58. Kf4 Rf2+ 59. Kg3 Re2 60. Kf4 {0-} 0-1

[Event "45th FIDE Womens Olympiad 2024"]
[Site "Budapest"]
[Date "2024.09.14"]
[Round "4.185"]
[White "Vilhete, Vania Fausto Da T."]
[Black "Antonova, Nadezhda"]
[Result "0-1"]
[ECO "D37"]
[WhiteElo "1877"]
[BlackElo "1967"]
[PlyCount "60"]
[EventDate "2024.09.05"]
[EventType "team-tourn"]
[EventCountry "HUN"]
[WhiteTeam "Mozambique"]
[BlackTeam "Tajikistan"]
[WhiteTeamCountry "MOZ"]
[BlackTeamCountry "TJK"]
[TimeControl "40/5400+30:1800+30"]

1. d4 Nf6 2. c4 e6 3. Nf3 d5 4. e3 Be7 5. Bd3 dxc4 6. Bxc4 O-O 7. O-O a6 8. Nc3 b5 9. Bb3 Bb7 10. a3 Nbd7 11. Re1 c5 12. dxc5 Nxc5 13. Bc2 Rc8 14. Qe2 Nce4 15. Nxe4 Nxe4 16. Nd4 Bh4 17. Rf1 Bf6 18. Rd1 Qc7 19. Bb3 Nc5 20. Ba2 Rfd8 21. Qg4 e5 22. Nf5 Rxd1+ 23. Qxd1 Qc6 24. f3 e4 25. Qd6 Nd3 26. Bd2 Qc2 27. Bxf7+ Kh8 28. Bc3 Qf2+ 29. Kh1 exf3 30. Qd8+ Rxd8 {0-} 0-1

[Event "45th FIDE Womens Olympiad 2024"]
[Site "Budapest"]
[Date "2024.09.14"]
[Round "4.186"]
[White "Saidova, Rukhshona"]
[Black "Efentakis, Katina"]
[Result "1-0"]
[ECO "B92"]
[WhiteElo "1873"]
[BlackElo "1650"]
[PlyCount "83"]
[EventDate "2024.09.05"]
[EventType "team-tourn"]
[EventCountry "HUN"]
[WhiteTeam "Tajikistan"]
[BlackTeam "Mozambique"]
[WhiteTeamCountry "TJK"]
[BlackTeamCountry "MOZ"]
[TimeControl "40/5400+30:1800+30"]

1. e4 c5 2. Nf3 d6 3. d4 cxd4 4. Nxd4 Nf6 5. Nc3 a6 6. Be2 e5 7. Nb3 Be6 8. Be3 Be7 9. O-O O-O 10. Qd3 Nbd7 11. Nd5 Bxd5 12. exd5 Rc8 13. c4 Qc7 14. Rfd1 Rfd8 15. Nd2 Nc5 16. Qf5 a5 17. b3 b6 18. a3 g6 19. Qf3 Kg7 20. b4 axb4 21. axb4 Ncd7 22. Nb3 Ra8 23. Ra2 Rdb8 24. Rxa8 Rxa8 25. c5 Ra2 26. cxb6 Nxb6 27. Rc1 Qb8 28. Bc4 e4 29. Qh3 Nxc4 30. Rxc4 Ra8 31. Bh6+ Kg8 32. Qc3 Qd8 33. Na5 Qd7 34. Rxe4 Rc8 35. Nc6 Bd8 36. h3 Rc7 37. Qa1 Rc8 38. g4 g5 39. Re3 Rc7 40. Nxd8 Qxd8 41. Qxf6 Rc1+ 42. Kg2 1-0

[Event "45th FIDE Womens Olympiad 2024"]
[Site "Budapest"]
[Date "2024.09.14"]
[Round "4.187"]
[White "Castro, Neusa Aridas De"]
[Black "Tolibova, Dilola"]
[Result "1/2-1/2"]
[ECO "C55"]
[WhiteElo "1684"]
[BlackElo "1831"]
[PlyCount "150"]
[EventDate "2024.09.05"]
[EventType "team-tourn"]
[EventCountry "HUN"]
[WhiteTeam "Mozambique"]
[BlackTeam "Tajikistan"]
[WhiteTeamCountry "MOZ"]
[BlackTeamCountry "TJK"]
[TimeControl "40/5400+30:1800+30"]

1. e4 e5 2. Nf3 Nc6 3. Bc4 Be7 4. d3 Nf6 5. c3 d6 6. Nbd2 O-O 7. O-O Bg4 8. Re1 h6 9. Nf1 Nh7 10. h3 Bh5 11. Ng3 Bg6 12. Nh2 Kh8 13. Be3 f5 14. exf5 Bxf5 15. Nxf5 Rxf5 16. Bb3 Bg5 17. Bc2 Bxe3 18. Rxe3 Qh4 19. Qe2 Raf8 20. Rf1 Ng5 21. Bd1 Ne6 22. Re4 Nf4 23. Qe3 d5 24. Ra4 Nxh3+ 25. Qxh3 Qf6 26. Ng4 Qf7 27. f3 Rh5 28. Qg3 Qg6 29. Bc2 Rg5 30. Bb1 h5 31. Qh4 Kg8 32. d4 e4 33. Ne3 Qf6 34. Qh3 Qf4 35. fxe4 Qd6 36. Rxf8+ Qxf8 37. exd5 Ne7 38. Qe6+ Kh8 39. Qe4 g6 40. Rxa7 Nf5 41. Qf4 Qe7 42. Bxf5 gxf5 43. Qe5+ Qxe5 44. dxe5 f4 45. e6 fxe3 46. e7 Rg8 47. Ra4 Kg7 48. Re4 Kf7 49. Rxe3 Ke8 50. c4 Rg4 51. b3 Rd4 52. Re2 b5 53. Rc2 bxc4 54. bxc4 Kxe7 55. a4 Rd1+ 56. Kh2 Ra1 57. Re2+ Kd6 58. Re6+ Kd7 59. c5 Rxa4 60. c6+ Kd8 61. Re5 h4 62. Kh3 Ra2 63. Kxh4 Rxg2 64. Kh5 Rg1 65. Rg5 Rd1 66. Re5 Rg1 67. Kh6 Rg2 68. Rg5 Rd2 69. Rg8+ Ke7 70. Rg7+ Kd6 71. Rd7+ Kc5 72. Rxc7 Rxd5 73. Kg7 Rd6 74. Kf7 Rxc6 75. Rxc6+ Kxc6 1/2-1/2

[Event "45th FIDE Womens Olympiad 2024"]
[Site "Budapest"]
[Date "2024.09.14"]
[Round "4.189"]
[White "Tharushi, T H D Niklesha"]
[Black "Karelina, Polina"]
[Result "1-0"]
[ECO "E97"]
[WhiteElo "1852"]
[BlackElo "1898"]
[PlyCount "69"]
[EventDate "2024.09.05"]
[EventType "team-tourn"]
[EventCountry "HUN"]
[WhiteTeam "Sri Lanka"]
[BlackTeam "Bahamas"]
[WhiteTeamCountry "SRI"]
[BlackTeamCountry "BAH"]
[TimeControl "40/5400+30:1800+30"]

1. d4 Nf6 2. c4 g6 3. Nc3 Bg7 4. e4 d6 5. Nf3 O-O 6. Be2 e5 7. O-O Nc6 8. d5 Ne7 9. b4 a5 10. Ba3 axb4 11. Bxb4 Nd7 12. a4 Bh6 13. Ne1 f5 14. f3 Be3+ 15. Kh1 f4 16. Nc2 Ba7 17. Nb5 Bc5 18. Bxc5 Nxc5 19. Nb4 g5 20. Nd3 b6 21. a5 h5 22. axb6 Rxa1 23. Qxa1 cxb6 24. Nxc5 bxc5 25. Qa7 Rf6 26. Qb8 Rg6 27. Ra1 g4 28. Ra6 Kh7 29. Ra7 Kh6 30. Qc7 Qxc7 31. Rxc7 Rg7 32. Nxd6 gxf3 33. Bxf3 Bg4 34. Bxg4 hxg4 35. Rxe7 1-0

[Event "45th FIDE Womens Olympiad 2024"]
[Site "Budapest"]
[Date "2024.09.14"]
[Round "4.190"]
[White "Johnson, Daijah"]
[Black "Pallie, Ehsha Mishela"]
[Result "1/2-1/2"]
[ECO "E85"]
[WhiteElo "1625"]
[BlackElo "1767"]
[PlyCount "53"]
[EventDate "2024.09.05"]
[EventType "team-tourn"]
[EventCountry "HUN"]
[WhiteTeam "Bahamas"]
[BlackTeam "Sri Lanka"]
[WhiteTeamCountry "BAH"]
[BlackTeamCountry "SRI"]
[TimeControl "40/5400+30:1800+30"]

1. d4 Nf6 2. c4 g6 3. Nc3 Bg7 4. e4 d6 5. f3 O-O 6. Be3 e5 7. Nge2 Nbd7 8. Qd2 a5 9. O-O-O exd4 10. Nxd4 h5 11. h3 Ne5 12. f4 Nc6 13. Nxc6 bxc6 14. e5 Ne8 15. Bc5 Ba6 16. exd6 cxd6 17. Ne4 Rb8 18. b3 Qe7 19. Nxd6 Qf6 20. Qd4 Qe6 21. Qe4 Qf6 22. Qd4 Qh4 23. Qf2 Qf6 24. Qd4 Qe6 25. Qe4 Qf6 26. Qd4 Qe6 27. Qe4 1/2-1/2

[Event "45th FIDE Womens Olympiad 2024"]
[Site "Budapest"]
[Date "2024.09.14"]
[Round "4.191"]
[White "Gunawardhana, Devindya Oshini"]
[Black "Pride, Chika"]
[Result "1-0"]
[ECO "C41"]
[WhiteElo "1956"]
[BlackElo "1587"]
[PlyCount "39"]
[EventDate "2024.09.05"]
[EventType "team-tourn"]
[EventCountry "HUN"]
[WhiteTeam "Sri Lanka"]
[BlackTeam "Bahamas"]
[WhiteTeamCountry "SRI"]
[BlackTeamCountry "BAH"]
[TimeControl "40/5400+30:1800+30"]

1. e4 e5 2. Nf3 d6 3. d4 Qe7 4. Nc3 c6 5. Be2 h6 6. Be3 Nf6 7. h3 Nbd7 8. Qd2 exd4 9. Bxd4 Nxe4 10. Nxe4 Qxe4 11. O-O-O c5 12. Rhe1 Kd8 13. Bb5 Qg6 14. Bc3 Qxg2 15. Qd5 Kc7 16. Ba5+ Kb8 17. Re8 Nf6 18. Rxc8+ Kxc8 19. Qxc5+ dxc5 20. Rd8# 1-0

[Event "45th FIDE Womens Olympiad 2024"]
[Site "Budapest"]
[Date "2024.09.14"]
[Round "4.193"]
[White "Lyons, Kieran"]
[Black "Clarke, Adani"]
[Result "1/2-1/2"]
[ECO "C01"]
[WhiteElo "1818"]
[BlackElo "1919"]
[PlyCount "115"]
[EventDate "2024.09.05"]
[EventType "team-tourn"]
[EventCountry "HUN"]
[WhiteTeam "Fiji"]
[BlackTeam "Jamaica"]
[WhiteTeamCountry "FIJ"]
[BlackTeamCountry "JAM"]
[TimeControl "40/5400+30:1800+30"]

1. e4 e6 2. Nf3 d5 3. exd5 exd5 4. d4 Bd6 5. Bd3 Ne7 6. O-O h6 7. Nc3 c6 8. Ne5 O-O 9. Qh5 Be6 10. g4 Bxe5 11. dxe5 f5 12. exf6 Rxf6 13. g5 Rf7 14. gxh6 Nf5 15. h7+ Kh8 16. Kh1 Nd7 17. Ne2 Nf6 18. Qh3 Nxh7 19. Ng3 Qh4 20. Qxh4 Nxh4 21. Be3 Bg4 22. f4 Re7 23. Rae1 Rae8 24. Bd2 Rxe1 25. Rxe1 Rxe1+ 26. Bxe1 Nf6 27. Bf2 b6 28. Kg1 Nf3+ 29. Kg2 Nd2 30. h3 Bf3+ 31. Kh2 Nfe4 32. Nxe4 Bxe4 33. Bxe4 Nxe4 34. Bd4 Kg8 35. h4 g6 36. Kh3 Kf7 37. Kg4 Nd6 38. Be5 Nf5 39. Kg5 Ne3 40. c3 Nc4 41. b4 Nxe5 42. fxe5 c5 43. bxc5 bxc5 44. e6+ Kxe6 45. Kxg6 d4 46. cxd4 cxd4 47. h5 d3 48. h6 d2 49. h7 d1=Q 50. h8=Q Qg4+ 51. Kh6 Qh4+ 52. Kg7 Qe7+ 53. Kh6 Kd6 54. Qd4+ Kc6 55. Qa4+ Kb6 56. Qb3+ Ka5 57. Qd5+ Kb6 58. Qb3+ 1/2-1/2

[Event "45th FIDE Womens Olympiad 2024"]
[Site "Budapest"]
[Date "2024.09.14"]
[Round "4.194"]
[White "Miller, Rachel"]
[Black "Sukhu, Gloria"]
[Result "1-0"]
[ECO "C50"]
[WhiteElo "1912"]
[BlackElo "1634"]
[PlyCount "71"]
[EventDate "2024.09.05"]
[EventType "team-tourn"]
[EventCountry "HUN"]
[WhiteTeam "Jamaica"]
[BlackTeam "Fiji"]
[WhiteTeamCountry "JAM"]
[BlackTeamCountry "FIJ"]
[TimeControl "40/5400+30:1800+30"]

1. e4 e5 2. Nf3 Nc6 3. Bc4 Nd4 4. Nxd4 exd4 5. c3 c5 6. cxd4 cxd4 7. O-O Nf6 8. Qb3 d5 9. exd5 Bd6 10. h3 O-O 11. Na3 a6 12. Nc2 Bc5 13. a4 Qd6 14. Qf3 Bd7 15. d3 b5 16. axb5 axb5 17. Rxa8 Rxa8 18. Bf4 Qa6 19. Bb3 Re8 20. Bg5 Qd6 21. Bf4 Qa6 22. Bg3 Qc8 23. Rc1 Bf5 24. Nxd4 Bg6 25. Qd1 Bh5 26. Qd2 Nd7 27. Bd6 h6 28. Bxc5 Nxc5 29. Qb4 Re1+ 30. Qxe1 Qf8 31. Qb4 Nxd3 32. Qxf8+ Kxf8 33. Rc7 Ne5 34. f4 Nd3 35. d6 Nxf4 36. Rc8# 1-0

[Event "45th FIDE Womens Olympiad 2024"]
[Site "Budapest"]
[Date "2024.09.14"]
[Round "4.195"]
[White "Terubea, Cydel"]
[Black "Watson, Gabriella"]
[Result "0-1"]
[ECO "B13"]
[WhiteElo "1681"]
[BlackElo "1826"]
[PlyCount "118"]
[EventDate "2024.09.05"]
[EventType "team-tourn"]
[EventCountry "HUN"]
[WhiteTeam "Fiji"]
[BlackTeam "Jamaica"]
[WhiteTeamCountry "FIJ"]
[BlackTeamCountry "JAM"]
[TimeControl "40/5400+30:1800+30"]

1. e4 c6 2. Nf3 d5 3. exd5 cxd5 4. d4 Nc6 5. Nc3 Nf6 6. Bf4 Bg4 7. Be2 e6 8. h3 Bf5 9. Nh4 Bg6 10. Nxg6 hxg6 11. Nb5 Rc8 12. Nc3 a6 13. a3 Bd6 14. Qd2 Bxf4 15. Qxf4 Qb6 16. O-O-O O-O 17. h4 Qa5 18. h5 gxh5 19. Bxh5 Ne7 20. Rd3 b5 21. Rg3 Nxh5 22. Rxh5 Ng6 23. Rgh3 Rfd8 24. Qh2 Kf8 25. Rg5 Qc7 26. Qxc7 Rxc7 27. g3 Rdc8 28. f4 Kg8 29. Rh2 Ne7 30. g4 g6 31. Re5 Nc6 32. Re3 Nxd4 33. Rd3 Nc6 34. Ne2 Na5 35. Nd4 Rc4 36. Kb1 Nb7 37. b3 Rc3 38. Kb2 R3c7 39. Rhh3 Nc5 40. Rc3 Ne4 41. Rxc7 Rxc7 42. Rf3 Kg7 43. f5 gxf5 44. gxf5 e5 45. Ne2 Kf6 46. Rd3 d4 47. c3 Nxc3 48. Nxd4 exd4 49. Rxd4 Kxf5 50. Rd6 a5 51. Rd3 b4 52. a4 Ke4 53. Rd2 f5 54. Rd6 Rc5 55. Re6+ Re5 56. Rh6 f4 57. Kc2 Ke3 58. Rh1 f3 59. Re1+ Ne2 {0-} 0-1

[Event "45th FIDE Womens Olympiad 2024"]
[Site "Budapest"]
[Date "2024.09.14"]
[Round "4.196"]
[White "McKoy, Arielle"]
[Black "Sukhu, Makayla"]
[Result "0-1"]
[ECO "C50"]
[WhiteElo "1442"]
[BlackElo "1521"]
[PlyCount "94"]
[EventDate "2024.09.05"]
[EventType "team-tourn"]
[EventCountry "HUN"]
[WhiteTeam "Jamaica"]
[BlackTeam "Fiji"]
[WhiteTeamCountry "JAM"]
[BlackTeamCountry "FIJ"]
[TimeControl "40/5400+30:1800+30"]

1. e4 e5 2. Bc4 Nf6 3. d3 Nc6 4. Nf3 Bc5 5. O-O O-O 6. Nc3 d6 7. h3 Qe7 8. Bg5 h6 9. Nd5 Qd8 10. Nxf6+ gxf6 11. Bxh6 Re8 12. Nh4 Ne7 13. Qh5 d5 14. Nf5 dxc4 15. Qg4+ Ng6 16. dxc4 c6 17. h4 Kh7 18. Qh5 Bxf5 19. exf5 Rh8 20. Be3+ Kg7 21. Qg4 Rxh4 22. Qg3 Qh8 23. f4 Bxe3+ 24. Qxe3 Rh1+ 25. Kf2 Qh4+ 26. g3 Qh2+ 27. Kf3 Rxf1+ 28. Rxf1 Ne7 29. fxe5 Qh5+ 30. Kg2 Nxf5 31. exf6+ Kg6 32. Qe4 Rh8 33. Rg1 Qh2+ 34. Kf1 Kxf6 35. Qf4 Re8 36. Qf3 Re3 37. Qg4 Nxg3+ 38. Rxg3 Rxg3 39. Qd4+ Kg6 40. Qe4+ Kh6 41. Qf4+ Kg6 42. Qe4+ f5 43. Qe8+ Kg5 44. Qg8+ Kf4 45. Qb8+ Kf3 46. Qxa7 Qh1+ 47. Qg1 Qxg1# {0-} 0-1

[Event "45th FIDE Womens Olympiad 2024"]
[Site "Budapest"]
[Date "2024.09.14"]
[Round "4.197"]
[White "Shipindo, Rauha"]
[Black "Al Maamari, Wafia Darwish"]
[Result "0-1"]
[ECO "B28"]
[WhiteElo "1677"]
[BlackElo "1908"]
[PlyCount "102"]
[EventDate "2024.09.05"]
[EventType "team-tourn"]
[EventCountry "HUN"]
[WhiteTeam "Namibia"]
[BlackTeam "United Arab Emirates"]
[WhiteTeamCountry "NAM"]
[BlackTeamCountry "UAE"]
[TimeControl "40/5400+30:1800+30"]

1. e4 c5 2. Nf3 a6 3. d4 cxd4 4. Nxd4 Nf6 5. Nc3 e5 6. Nb3 Bb4 7. Bd2 d6 8. Bd3 Bg4 9. Ne2 Bxd2+ 10. Qxd2 O-O 11. O-O-O d5 12. exd5 e4 13. f3 exd3 14. Qxd3 Bd7 15. Nc3 a5 16. a4 Na6 17. g4 Nb4 18. Qd4 Rc8 19. Rd2 Qc7 20. d6 Qd8 21. Rf1 b6 22. h4 Be6 23. Na1 Rc4 24. Qe5 Re8 25. Qb5 Rc5 26. Qe2 Bc4 27. Qf2 Bxf1 28. Qxf1 Rce5 29. Qf2 Nbd5 30. Nd1 Qxd6 31. Qd4 Qb4 32. Qxb4 Nxb4 33. c3 Na6 34. Nb3 Nc5 35. Nd4 Nxa4 36. Kc2 h6 37. Nf2 Nc5 38. b3 Nd5 39. c4 Nb4+ 40. Kb2 Re3 41. h5 Ncd3+ 42. Nxd3 Rxd3 43. Rxd3 Nxd3+ 44. Kc3 Nb4 45. Kd2 g6 46. hxg6 fxg6 47. Ne2 h5 48. Nf4 h4 49. g5 Kg7 50. Nh3 Re5 51. f4 Re4 {0-} 0-1

[Event "45th FIDE Womens Olympiad 2024"]
[Site "Budapest"]
[Date "2024.09.14"]
[Round "4.198"]
[White "Mariam, Essa"]
[Black "Beukes Jamie-Nicole"]
[Result "1-0"]
[ECO "A20"]
[WhiteElo "1779"]
[BlackElo "1735"]
[PlyCount "33"]
[EventDate "2024.09.05"]
[EventType "team-tourn"]
[EventCountry "HUN"]
[WhiteTeam "United Arab Emirates"]
[BlackTeam "Namibia"]
[WhiteTeamCountry "UAE"]
[BlackTeamCountry "NAM"]
[TimeControl "40/5400+30:1800+30"]

1. c4 e5 2. g3 c6 3. Nf3 Qc7 4. Nc3 Nf6 5. Bg2 Be7 6. O-O O-O 7. e4 Rd8 8. d4 d5 9. Nxe5 dxe4 10. Nxe4 Nxe4 11. Bxe4 c5 12. Bxh7+ Kf8 13. Bf4 Qb6 14. Qh5 Qf6 15. Bg5 Qe6 16. Bf5 Qxf5 17. Qh8# 1-0

[Event "45th FIDE Womens Olympiad 2024"]
[Site "Budapest"]
[Date "2024.09.14"]
[Round "4.199"]
[White "Van Wyk, Keisha C"]
[Black "Anoud Eisa Bashkardi"]
[Result "1-0"]
[ECO "C45"]
[WhiteElo "1599"]
[BlackElo "1811"]
[PlyCount "59"]
[EventDate "2024.09.05"]
[EventType "team-tourn"]
[EventCountry "HUN"]
[WhiteTeam "Namibia"]
[BlackTeam "United Arab Emirates"]
[WhiteTeamCountry "NAM"]
[BlackTeamCountry "UAE"]
[TimeControl "40/5400+30:1800+30"]

1. e4 e5 2. Nf3 Nc6 3. d4 exd4 4. Nxd4 Nf6 5. Nxc6 bxc6 6. Bd3 d5 7. e5 Ng4 8. O-O Qh4 9. Bf4 Bc5 10. Bg3 Qg5 11. Nd2 Qe7 12. Nf3 g5 13. Qd2 Rg8 14. h4 h6 15. a3 Be6 16. Rac1 a5 17. Be2 Bf5 18. h5 Kf8 19. Nd4 Bxd4 20. Qxd4 c5 21. Qxd5 Rd8 22. Qf3 Bd7 23. Bc4 Be6 24. Bd3 c4 25. Be4 Qc5 26. Rcd1 Kg7 27. Bf5 Nxe5 28. Qe4 Bxf5 29. Bxe5+ f6 30. Qxf5 1-0

[Event "45th FIDE Womens Olympiad 2024"]
[Site "Budapest"]
[Date "2024.09.14"]
[Round "4.201"]
[White "Sokolova, Larisa"]
[Black "Martinez Orozco, Cristiana Yorlene"]
[Result "0-1"]
[ECO "B15"]
[WhiteElo "1705"]
[BlackElo "1761"]
[PlyCount "56"]
[EventDate "2024.09.05"]
[EventType "team-tourn"]
[EventCountry "HUN"]
[WhiteTeam "Cyprus"]
[BlackTeam "Nicaragua"]
[WhiteTeamCountry "CYP"]
[BlackTeamCountry "NCA"]
[TimeControl "40/5400+30:1800+30"]

1. e4 c6 2. d4 d5 3. Nc3 dxe4 4. Nxe4 Nf6 5. Nxf6+ exf6 6. c3 Bd6 7. Bd3 O-O 8. Qc2 Re8+ 9. Ne2 h5 10. Be3 Qc7 11. O-O-O Be6 12. Kb1 Nd7 13. Ng3 Bd5 14. c4 Bxg2 15. Rhg1 Bf3 16. Be2 Bg4 17. Nxh5 Bxh5 18. Bxh5 Nf8 19. Bh6 g6 20. Bxg6 Nxg6 21. Rxg6+ fxg6 22. Qxg6+ Kh8 23. Rg1 Qh7 24. Bg7+ Kg8 25. Qxh7+ Kxh7 26. Bxf6 Rg8 27. Rf1 Raf8 28. Bh4 Rg4 {0-} 0-1

[Event "45th FIDE Womens Olympiad 2024"]
[Site "Budapest"]
[Date "2024.09.14"]
[Round "4.202"]
[White "Cabezas Calero, Abigail Carolina"]
[Black "Paunescu, Aida"]
[Result "0-1"]
[ECO "B13"]
[WhiteElo "1824"]
[BlackElo "1603"]
[PlyCount "71"]
[EventDate "2024.09.05"]
[EventType "team-tourn"]
[EventCountry "HUN"]
[WhiteTeam "Nicaragua"]
[BlackTeam "Cyprus"]
[WhiteTeamCountry "NCA"]
[BlackTeamCountry "CYP"]
[TimeControl "40/5400+30:1800+30"]

1. e4 d5 2. exd5 c6 3. d4 cxd5 4. Nf3 Nc6 5. Nc3 Nf6 6. Be2 Bf5 7. a3 e6 8. Bf4 Bd6 9. Bxd6 Qxd6 10. O-O O-O 11. Re1 a6 12. h3 Rfe8 13. Ne5 Nd7 14. f4 f6 15. Nxd7 Qxd7 16. Bf3 Rac8 17. Na4 Qc7 18. Qd2 Na5 19. Nc5 b6 20. Nxa6 Qxc2 21. Qxc2 Rxc2 22. Bxd5 Kf8 23. Be4 Rxb2 24. g4 Bxe4 25. Rxe4 Nb3 26. Rae1 Nd2 27. R4e3 Rc8 28. Nb4 Rc4 29. Kh1 Rxd4 30. Rxe6 Nf3 31. Re8+ Kf7 32. R8e7+ Kg6 33. f5+ Kg5 34. R1e2 Rdd2 35. Rxd2 Rxd2 36. Re3 {0-} 0-1

[Event "45th FIDE Womens Olympiad 2024"]
[Site "Budapest"]
[Date "2024.09.14"]
[Round "4.203"]
[White "Pica, Eleni"]
[Black "Munoz Cortez, Anahi Alexandra"]
[Result "0-1"]
[ECO "D53"]
[WhiteElo "1609"]
[BlackElo "1868"]
[PlyCount "118"]
[EventDate "2024.09.05"]
[EventType "team-tourn"]
[EventCountry "HUN"]
[WhiteTeam "Cyprus"]
[BlackTeam "Nicaragua"]
[WhiteTeamCountry "CYP"]
[BlackTeamCountry "NCA"]
[TimeControl "40/5400+30:1800+30"]

1. d4 d5 2. c4 e6 3. Nc3 Nf6 4. Bg5 Be7 5. Nf3 a6 6. cxd5 exd5 7. e3 Nbd7 8. Be2 O-O 9. O-O h6 10. Bh4 c6 11. Rc1 b5 12. Nd2 Bb7 13. f3 Qb6 14. Bf2 c5 15. a3 cxd4 16. exd4 Rfe8 17. Re1 Nf8 18. Nb3 N6d7 19. Bd3 Bf6 20. Rxe8 Rxe8 21. Ne2 Ne6 22. Bb1 a5 23. Bf5 a4 24. Na1 Rc8 25. Rxc8+ Bxc8 26. Bxe6 Qxe6 27. Nf4 Qf5 28. Ne2 Nb6 29. Ng3 Qe6 30. b3 Qd6 31. Qc1 Bd7 32. bxa4 bxa4 33. Nc2 Nc4 34. Ne2 Be7 35. Bg3 Qb6 36. Nc3 Bc6 37. Qb1 Qb3 38. Be1 Nxa3 39. Qxb3 axb3 40. Nxa3 Bxa3 41. Nb1 Bc1 42. Kf2 Bb5 43. Bb4 Bd3 44. Ba3 Bxa3 45. Nxa3 b2 46. Ke3 b1=Q 47. Nxb1 Bxb1 48. Kf4 f6 49. h4 g5+ 50. hxg5 hxg5+ 51. Kg4 Kg7 52. g3 Kg6 53. f4 Bc2 54. Kf3 Bd1+ 55. Ke3 Kf5 56. fxg5 fxg5 57. Kd2 Bf3 58. Ke3 Kg4 59. Kf2 Be4 {0-} 0-1